[Event "XIX Najdorf Memorial 2019"]
[Site "Warsaw"]
[Date "2019.07.13"]
[Round "8.3"]
[White "Sedlak, Nikola"]
[Black "Noe, Christopher"]
[Result "1-0"]
[ECO "D02"]
[WhiteElo "2586"]
[BlackElo "2534"]
[Annotator "ChessBase"]
[PlyCount "57"]
[EventDate "2019.07.06"]
[EventType "swiss"]
[EventCountry "POL"]
[SourceTitle "playchess.com"]
[Source "ChessBase"]
[SourceQuality "1"]
[TimeControl "40/5400+30:1800+30"]

1. d4 {[%emt 0:00:05]} Nf6 {[%emt 0:00:00]} 2. Nf3 {[%emt 0:00:18]} d5 {[%emt 0:00:00]} 3. Bf4 {[%emt 0:02:15]} c5 {[%emt 0:00:00]} 4. e3 {[%emt 0:00:17]} Nc6 {[%emt 0:00:00]} 5. Nbd2 {[%emt 0:01:28]} e6 {[%emt 0:00:01]} 6. c3 {[%emt 0:00:24]} Bd6 {[%emt 0:00:05]} 7. Bg3 {[%emt 0:00:34]} O-O {[%emt 0:00:06]} 8. Bd3 {[%emt 0:00:38]} b6 {[%emt 0:00:05]} 9. Qe2 {[%emt 0:01:07]} Bb7 {[%emt 0:00:05]} 10. Rd1 {[%emt 0:00:48]} Re8 {[%emt 0:00:04]} 11. e4 {[%emt 0:00:39]} Be7 {[%emt 0:00:05]} 12. e5 {[%emt 0:00:09]} Nh5 {[%emt 0:00:17]} 13. h4 {[%emt 0:00:24]} g6 {[%emt 0:28:39]} 14. Bh2 {[%emt 0:00:33]} cxd4 {[%emt 0:17:08]} 15. Nxd4 {[%emt 0:27:26]} Nxd4 {[%emt 0:08:34]} 16. cxd4 {[%emt 0:02:34]} Ng7 {[%emt 0:01:45]} 17. g4 {[%emt 0:18:03]} a5 {[%emt 0:21:39]} 18. h5 {[%emt 0:01:45]} Rf8 {[%emt 0:00:05]} 19. Bf4 {[%emt 0:01:43]} Qc8 {[%emt 0:04:28]} 20. Qe3 {[%emt 0:02:44]} Ba6 {[%emt 0:02:38]} 21. Bb1 {[%emt 0:01:09]} gxh5 {[%emt 0:11:02]} 22. Bh6 {[%emt 0:09:09]} f5 {[%emt 0:00:17]} 23. gxf5 {[%emt 0:06:26]} Rxf5 {[%emt 0:01:13]} 24. Bxg7 {[%emt 0:01:07]} Kxg7 {[%emt 0:00:19]} 25. Bxf5 exf5 {[%emt 0:00:02]} 26. Rg1+ {[%emt 0:01:25]} Kh8 {[%emt 0:00:40]} 27. Qh6 {[%emt 0:00:41]} Qf8 {[%emt 0:01:25]} 28. Qxf8+ {[%emt 0:00:30]} Rxf8 {[%emt 0:00:02]} 29. Rc1 {[%emt 0:00:23]} 1-0

[Event "XIX Najdorf Memorial 2019"]
[Site "Warsaw"]
[Date "2019.07.13"]
[Round "8.3"]
[White "Jakubowski, Krzysztof"]
[Black "Kucza, Karol"]
[Result "1-0"]
[ECO "A00"]
[WhiteElo "2528"]
[BlackElo "2315"]
[Annotator "ChessBase"]
[PlyCount "57"]
[EventDate "2019.07.06"]
[EventType "swiss"]
[EventCountry "POL"]
[SourceTitle "playchess.com"]
[Source "ChessBase"]
[SourceQuality "1"]
[TimeControl "40/5400+30:1800+30"]

1. g3 Nf6 2. Bg2 d5 3. f4 c5 4. Nf3 g6 5. O-O Bg7 6. d3 b6 7. e4 {[%emt 0:06:27]} O-O 8. e5 Ne8 9. c4 Nc7 10. Nc3 d4 11. Ne4 Bb7 12. h4 Bxe4 13. dxe4 Nc6 14. h5 e6 15. Rf2 a6 16. Bf1 b5 17. Rh2 Qe7 18. b3 Rad8 19. a3 bxc4 20. bxc4 Qd7 21. Bd3 Rb8 22. Raa2 Na8 23. hxg6 fxg6 24. Rh3 Nb6 25. Rah2 h6 26. f5 Nxe5 27. Nxe5 Bxe5 28. Rxh6 gxf5 29. Qh5 1-0

[Event "XIX Najdorf Memorial 2019"]
[Site "Warsaw"]
[Date "2019.07.13"]
[Round "8.4"]
[White "Heberla, Bartlomiej"]
[Black "Galperin, Platon"]
[Result "1-0"]
[ECO "B58"]
[WhiteElo "2534"]
[BlackElo "2445"]
[Annotator "ChessBase"]
[PlyCount "55"]
[EventDate "2019.07.06"]
[EventType "swiss"]
[EventCountry "POL"]
[SourceTitle "playchess.com"]
[Source "ChessBase"]
[SourceQuality "1"]
[TimeControl "40/5400+30:1800+30"]

1. e4 c5 {[%emt 0:00:00]} 2. Nf3 {[%emt 0:15:26]} Nc6 {[%emt 0:00:00]} 3. Nc3 {[%emt 0:00:09]} d6 {[%emt 0:00:00]} 4. d4 {[%emt 0:00:05]} cxd4 {[%emt 0:00:00]} 5. Nxd4 {[%emt 0:00:03]} Nf6 {[%emt 0:00:00]} 6. Be2 {[%emt 0:00:02]} e5 {[%emt 0:00:00]} 7. Nf3 {[%emt 0:00:03]} h6 {[%emt 0:00:00]} 8. O-O {[%emt 0:00:04]} Be7 {[%emt 0:00:10]} 9. Re1 {[%emt 0:00:05]} O-O {[%emt 0:00:06]} 10. h3 {[%emt 0:00:02]} Be6 {[%emt 0:00:26]} 11. Bf1 {[%emt 0:00:03]} Qa5 {[%emt 0:00:07]} 12. a3 {[%emt 0:00:05]} Rac8 {[%emt 0:13:04]} 13. Rb1 {[%emt 0:01:16]} Nb8 {[%emt 0:02:02]} 14. Nh4 {[%emt 0:04:00]} Nc6 {[%emt 0:00:53]} 15. Nf3 {[%emt 0:05:27]} Nb8 {[%emt 0:00:30]} 16. Nb5 {[%emt 0:18:09]} d5 {[%emt 0:32:47]} 17. exd5 {[%emt 0:11:15]} Bxd5 {[%emt 0:10:27]} 18. Nxe5 {[%emt 0:22:45]} Rfd8 {[%emt 0:02:20]} 19. Bd2 {[%emt 0:03:13]} Qb6 {[%emt 0:02:15]} 20. Nc3 {[%emt 0:00:16]} Bc5 {[%emt 0:02:28]} 21. Nd3 {[%emt 0:00:37]} Bc6 {[%emt 0:00:30]} 22. Nxc5 {[%emt 0:00:30]} Qxc5 {[%emt 0:00:30]} 23. Be3 {[%emt 0:00:30]} Qa5 {[%emt 0:00:30]} 24. Qe2 {[%emt 0:00:30]} Nbd7 {[%emt 0:20:58]} 25. Rbd1 {[%emt 0:03:19]} Re8 {[%emt 0:00:01]} 26. Nb5 {[%emt 0:01:57]} Bxb5 {[%emt 0:06:42]} 27. Qxb5 {[%emt 0:00:02]} Qc7 {[%emt 0:00:10]} 28. c3 {[%emt 0:00:56]} 1-0

[Event "XIX Najdorf Memorial 2019"]
[Site "Warsaw"]
[Date "2019.07.13"]
[Round "8.5"]
[White "Popovic, Dusan"]
[Black "Marczuk, Dominik"]
[Result "1-0"]
[ECO "A48"]
[WhiteElo "2487"]
[BlackElo "2300"]
[Annotator "ChessBase"]
[PlyCount "96"]
[EventDate "2019.07.06"]
[EventType "swiss"]
[EventCountry "POL"]
[SourceTitle "playchess.com"]
[Source "ChessBase"]
[SourceQuality "1"]
[TimeControl "40/5400+30:1800+30"]

1. d4 {[%emt 0:00:00]} Nf6 {[%emt 0:00:03]} 2. Nf3 {[%emt 0:00:00]} g6 {[%emt 0:00:21]} 3. Nbd2 {[%emt 0:00:00]} Bg7 {[%emt 0:00:37]} 4. e4 {[%emt 0:00:20]} d6 {[%emt 0:00:37]} 5. Bb5+ {[%emt 0:00:09]} c6 {[%emt 0:05:30]} 6. Bd3 {[%emt 0:00:05]} O-O {[%emt 0:00:13]} 7. O-O {[%emt 0:00:03]} Nbd7 {[%emt 0:01:29]} 8. Re1 {[%emt 0:00:08]} e5 {[%emt 0:01:01]} 9. c3 {[%emt 0:00:06]} Qc7 {[%emt 0:02:11]} 10. a4 {[%emt 0:04:21]} d5 {[%emt 0:12:25]} 11. exd5 {[%emt 0:12:53]} Nxd5 {[%emt 0:04:19]} 12. dxe5 {[%emt 0:00:13]} Nxe5 {[%emt 0:00:38]} 13. Nxe5 {[%emt 0:00:04]} Bxe5 {[%emt 0:00:06]} 14. Nf3 {[%emt 0:00:27]} Bg4 {[%emt 0:06:43]} 15. h3 {[%emt 0:00:35]} Bxf3 {[%emt 0:01:06]} 16. Qxf3 {[%emt 0:00:21]} Rfe8 {[%emt 0:08:13]} 17. g3 {[%emt 0:01:29]} Kg7 {[%emt 0:02:51]} 18. Bd2 {[%emt 0:10:34]} Qb6 {[%emt 0:08:06]} 19. Re2 {[%emt 0:00:34]} Re7 {[%emt 0:04:30]} 20. c4 {[%emt 0:22:17]} Nf6 {[%emt 0:09:52]} 21. a5 {[%emt 0:22:39]} Qc7 {[%emt 0:01:48]} 22. a6 {[%emt 0:01:01]} b6 {[%emt 0:01:46]} 23. Rae1 {[%emt 0:01:00]} Rae8 {[%emt 0:01:15]} 24. b4 {[%emt 0:01:12]} Qd6 {[%emt 0:08:45]} 25. Bc2 {[%emt 0:04:50]} Nd7 {[%emt 0:09:57]} 26. Ba4 {[%emt 0:06:14]} Re6 {[%emt 0:01:01]} 27. Rd1 {[%emt 0:02:10]} Qc7 {[%emt 0:00:55]} 28. Bg5 {[%emt 0:01:21]} f6 {[%emt 0:02:55]} 29. Bc1 {[%emt 0:04:55]} R8e7 {[%emt 0:00:55]} 30. Be3 {[%emt 0:02:57]} f5 {[%emt 0:03:25]} 31. c5 {[%emt 0:00:57]} Bf6 {[%emt 0:01:06]} 32. cxb6 {[%emt 0:00:53]} Nxb6 {[%emt 0:00:27]} 33. Bf4 {[%emt 0:00:44]} Qc8 {[%emt 0:00:17]} 34. Rxe6 {[%emt 0:00:29]} Rxe6 {[%emt 0:00:23]} 35. Bb3 {[%emt 0:00:48]} Re4 {[%emt 0:00:05]} 36. Qd3 {[%emt 0:00:34]} Rxb4 {[%emt 0:00:53]} 37. Qe3 {[%emt 0:00:25]} h5 {[%emt 0:01:06]} 38. Rd6 {[%emt 0:00:34]} Re4 {[%emt 0:00:18]} 39. Qd2 {[%emt 0:00:35]} Qxa6 {[%emt 0:00:25]} 40. Kg2 {[%emt 0:00:00]} Re2 {[%emt 0:00:00]} 41. Qd1 {[%emt 0:14:35]} Be7 {[%emt 0:08:25]} 42. Qd4+ {[%emt 0:04:51]} Kh7 {[%emt 0:00:15]} 43. Rf6 {[%emt 0:01:01]} Bxf6 {[%emt 0:01:12]} 44. Qxf6 {[%emt 0:00:09]} Qb7 {[%emt 0:13:37]} 45. Bf7 {[%emt 0:00:05]} c5+ {[%emt 0:00:29]} 46. Kf1 {[%emt 0:00:06]} Qh1+ {[%emt 0:02:08]} 47. Kxe2 {[%emt 0:00:04]} Qe4+ {[%emt 0:00:00]} 48. Be3 {[%emt 0:00:04]} f4 {[%emt 0:00:00]} 1-0

[Event "XIX Najdorf Memorial 2019"]
[Site "Warsaw"]
[Date "2019.07.13"]
[Round "8.5"]
[White "Gagare, Shardul"]
[Black "Bernadskiy, Vitaliy"]
[Result "0-1"]
[ECO "A37"]
[WhiteElo "2476"]
[BlackElo "2594"]
[Annotator "ChessBase"]
[PlyCount "160"]
[EventDate "2019.07.06"]
[EventType "swiss"]
[EventCountry "POL"]
[SourceTitle "playchess.com"]
[Source "ChessBase"]
[SourceQuality "1"]
[TimeControl "40/5400+30:1800+30"]

1. Nf3 {[%emt 0:02:58]} g6 {[%emt 0:03:10]} 2. c4 {[%emt 0:07:02]} Bg7 {[%emt 0:01:47]} 3. g3 {[%emt 0:01:19]} c5 {[%emt 0:03:27]} 4. Bg2 {[%emt 0:00:14]} Nc6 {[%emt 0:00:04]} 5. Nc3 {[%emt 0:00:33]} d6 {[%emt 0:00:04]} 6. d3 {[%emt 0:06:58]} e6 {[%emt 0:01:38]} 7. O-O {[%emt 0:00:19]} Nge7 {[%emt 0:00:02]} 8. a3 {[%emt 0:02:26]} b6 {[%emt 0:00:38]} 9. Bf4 {[%emt 0:01:47]} O-O {[%emt 0:03:11]} 10. Qc1 {[%emt 0:01:55]} Bb7 {[%emt 0:03:20]} 11. Bh6 {[%emt 0:01:20]} Qd7 {[%emt 0:03:06]} 12. Bxg7 {[%emt 0:07:26]} Kxg7 {[%emt 0:00:03]} 13. Rb1 {[%emt 0:10:43]} Rad8 {[%emt 0:01:21]} 14. e3 {[%emt 0:07:33]} h6 {[%emt 0:02:18]} 15. b4 {[%emt 0:00:43]} g5 {[%emt 0:02:16]} 16. Qb2 {[%emt 0:18:22]} f6 {[%emt 0:00:52]} 17. h3 {[%emt 0:00:32]} Ng6 {[%emt 0:14:42]} 18. d4 {[%emt 0:02:30]} cxd4 {[%emt 0:00:35]} 19. exd4 {[%emt 0:00:07]} e5 {[%emt 0:00:12]} 20. Rbd1 {[%emt 0:04:02]} Qf7 {[%emt 0:03:44]} 21. Nd5 {[%emt 0:03:35]} e4 {[%emt 0:03:02]} 22. Nd2 {[%emt 0:00:12]} f5 {[%emt 0:00:32]} 23. f3 {[%emt 0:02:03]} e3 {[%emt 0:00:42]} 24. Nxe3 {[%emt 0:00:13]} f4 {[%emt 0:00:02]} 25. gxf4 {[%emt 0:08:31]} Qxf4 {[%emt 0:00:06]} 26. Nd5 {[%emt 0:01:52]} Qxd4+ {[%emt 0:00:51]} 27. Qxd4+ {[%emt 0:00:07]} Nxd4 {[%emt 0:00:03]} 28. Ne4 {[%emt 0:00:31]} Nf5 {[%emt 0:00:42]} 29. Rf2 {[%emt 0:01:00]} Bxd5 {[%emt 0:00:49]} 30. Rxd5 {[%emt 0:00:54]} Nf4 {[%emt 0:00:07]} 31. Rdd2 {[%emt 0:00:33]} Nxg2 {[%emt 0:01:16]} 32. Kxg2 {[%emt 0:00:32]} Ne3+ {[%emt 0:00:03]} 33. Kg3 {[%emt 0:03:21]} Nxc4 {[%emt 0:00:04]} 34. Rd3 {[%emt 0:00:05]} d5 {[%emt 0:00:15]} 35. Nc3 {[%emt 0:01:16]} d4 {[%emt 0:02:32]} 36. Ne2 {[%emt 0:02:50]} Kg6 {[%emt 0:04:09]} 37. Rxd4 {[%emt 0:00:50]} Nxa3 {[%emt 0:00:03]} 38. Re4 {[%emt 0:00:44]} Nb5 {[%emt 0:00:32]} 39. f4 {[%emt 0:00:09]} Rfe8 {[%emt 0:02:15]} 40. Rxe8 Rxe8 {[%emt 0:00:00]} 41. Kf3 {[%emt 0:04:45]} Rc8 {[%emt 0:00:25]} 42. Rg2 {[%emt 0:07:10]} Kf6 {[%emt 0:01:53]} 43. Rg4 {[%emt 0:01:16]} gxf4 {[%emt 0:04:33]} 44. Rxf4+ {[%emt 0:00:05]} Ke7 {[%emt 0:00:12]} 45. Nd4 {[%emt 0:09:54]} Rc3+ {[%emt 0:01:29]} 46. Kg2 {[%emt 0:04:10]} Nxd4 {[%emt 0:07:06]} 47. Rxd4 {[%emt 0:00:02]} b5 {[%emt 0:00:09]} 48. Rh4 {[%emt 0:02:45]} Rc6 {[%emt 0:00:15]} 49. Rg4 {[%emt 0:03:30]} Kf6 {[%emt 0:00:57]} 50. Rh4 {[%emt 0:01:32]} Kg5 {[%emt 0:00:58]} 51. Rg4+ {[%emt 0:00:54]} Kh5 {[%emt 0:00:13]} 52. Rd4 {[%emt 0:00:58]} a6 {[%emt 0:00:55]} 53. Rd5+ {[%emt 0:00:45]} Kg6 {[%emt 0:00:57]} 54. Kg3 {[%emt 0:00:34]} Kf6 {[%emt 0:00:22]} 55. Rh5 {[%emt 0:00:30]} Ke7 {[%emt 0:00:04]} 56. Re5+ {[%emt 0:00:29]} Kd6 {[%emt 0:00:30]} 57. Rf5 {[%emt 0:00:15]} Kc7 {[%emt 0:00:56]} 58. h4 {[%emt 0:00:24]} Kb6 {[%emt 0:02:29]} 59. Rf8 {[%emt 0:00:09]} Rc3+ {[%emt 0:05:13]} 60. Kg2 {[%emt 0:00:03]} Rc4 {[%emt 0:02:29]} 61. Rf6+ {[%emt 0:00:05]} Rc6 {[%emt 0:00:09]} 62. Rf8 {[%emt 0:00:04]} a5 {[%emt 0:02:02]} 63. Rb8+ {[%emt 0:00:06]} Ka7 {[%emt 0:00:03]} 64. Rxb5 {[%emt 0:00:09]} a4 {[%emt 0:00:02]} 65. Rd5 {[%emt 0:02:44]} a3 {[%emt 0:00:03]} 66. Rd2 {[%emt 0:01:02]} Ra6 {[%emt 0:00:53]} 67. Ra2 {[%emt 0:00:28]} Kb6 {[%emt 0:00:04]} 68. Kf3 {[%emt 0:00:29]} Kb5 {[%emt 0:00:04]} 69. Kg4 {[%emt 0:00:12]} Kxb4 {[%emt 0:00:17]} 70. Kh5 {[%emt 0:00:07]} Kb3 {[%emt 0:02:05]} 71. Ra1 {[%emt 0:00:20]} a2 {[%emt 0:00:25]} 72. Rg1 {[%emt 0:00:20]} Rb6 {[%emt 0:00:31]} 73. Rf1 {[%emt 0:01:08]} Ka4 {[%emt 0:00:06]} 74. Ra1 {[%emt 0:00:11]} Ka3 {[%emt 0:00:41]} 75. Rf1 {[%emt 0:00:22]} Rb1 {[%emt 0:01:17]} 76. Rf8 {[%emt 0:01:06]} Rb5+ {[%emt 0:00:14]} 77. Kxh6 {[%emt 0:00:22]} Rb4 {[%emt 0:00:02]} 78. Rf3+ {[%emt 0:00:45]} Ka4 {[%emt 0:00:09]} 79. Rf8 {[%emt 0:00:41]} Rxh4+ {[%emt 0:00:09]} 80. Kg5 {[%emt 0:00:04]} Rb4 {[%emt 0:00:09]} 0-1

[Event "XIX Najdorf Memorial 2019"]
[Site "Warsaw"]
[Date "2019.07.13"]
[Round "8.6"]
[White "Fedorov, Alexei"]
[Black "Barski, Radoslaw"]
[Result "1-0"]
[ECO "C50"]
[WhiteElo "2551"]
[BlackElo "2468"]
[Annotator "ChessBase"]
[PlyCount "65"]
[EventDate "2019.07.06"]
[EventType "swiss"]
[EventCountry "POL"]
[SourceTitle "playchess.com"]
[Source "ChessBase"]
[SourceQuality "1"]
[TimeControl "40/5400+30:1800+30"]

1. e4 {[%emt 0:00:00]} e5 {[%emt 0:00:00]} 2. Nf3 {[%emt 0:00:03]} Nc6 {[%emt 0:00:00]} 3. Bc4 {[%emt 0:00:12]} Bc5 {[%emt 0:00:00]} 4. O-O {[%emt 0:00:22]} Nf6 {[%emt 0:00:07]} 5. d3 {[%emt 0:00:11]} a6 {[%emt 0:00:24]} 6. c3 {[%emt 0:00:19]} d6 {[%emt 0:00:19]} 7. Bb3 {[%emt 0:01:10]} Ba7 {[%emt 0:00:14]} 8. Nbd2 {[%emt 0:02:38]} O-O {[%emt 0:01:35]} 9. h3 {[%emt 0:01:29]} h6 {[%emt 0:13:48]} 10. Re1 {[%emt 0:00:59]} Nh5 {[%emt 0:01:07]} 11. Nf1 {[%emt 0:03:48]} Qf6 {[%emt 0:00:44]} 12. Be3 {[%emt 0:05:40]} Nf4 {[%emt 0:01:09]} 13. d4 {[%emt 0:09:17]} Ne7 {[%emt 0:05:29]} 14. Ng3 {[%emt 0:02:59]} Neg6 {[%emt 0:01:38]} 15. Bc2 {[%emt 0:00:21]} Re8 {[%emt 0:02:13]} 16. Nf5 {[%emt 0:05:28]} Be6 {[%emt 0:18:02]} 17. h4 {[%emt 0:10:36]} Bb6 {[%emt 0:19:20]} 18. g3 {[%emt 0:09:50]} Nh3+ {[%emt 0:01:47]} 19. Kg2 {[%emt 0:03:06]} d5 {[%emt 0:02:20]} 20. dxe5 {[%emt 0:09:21]} Nxe5 {[%emt 0:00:37]} 21. Nxe5 {[%emt 0:02:45]} dxe4 {[%emt 0:03:51]} 22. Nd4 {[%emt 0:04:25]} Qxe5 {[%emt 0:07:22]} 23. Nxe6 {[%emt 0:00:41]} Qxe6 {[%emt 0:11:39]} 24. Bxb6 Qxb6 {[%emt 0:00:50]} 25. Kxh3 {[%emt 0:02:31]} Qxf2 {[%emt 0:00:03]} 26. Rf1 {[%emt 0:01:43]} Qb6 {[%emt 0:01:17]} 27. Bb3 {[%emt 0:01:23]} Re7 {[%emt 0:00:39]} 28. Qd5 {[%emt 0:00:36]} Rf8 {[%emt 0:00:50]} 29. Rf4 {[%emt 0:02:34]} e3 {[%emt 0:02:19]} 30. Re1 {[%emt 0:03:12]} c6 {[%emt 0:03:15]} 31. Qf3 {[%emt 0:01:32]} Qc7 {[%emt 0:01:10]} 32. Rxe3 {[%emt 0:01:26]} Qd7+ {[%emt 0:00:02]} 33. g4 {[%emt 0:00:09]} 1-0

[Event "XIX Najdorf Memorial 2019"]
[Site "Warsaw"]
[Date "2019.07.13"]
[Round "8.7"]
[White "Budrewicz, Krzysztof"]
[Black "Ali Marandi, Cemil Can"]
[Result "0-1"]
[ECO "D10"]
[WhiteElo "2188"]
[BlackElo "2527"]
[Annotator "ChessBase"]
[PlyCount "50"]
[EventDate "2019.07.06"]
[EventType "swiss"]
[EventCountry "POL"]
[SourceTitle "playchess.com"]
[Source "ChessBase"]
[SourceQuality "1"]
[TimeControl "40/5400+30:1800+30"]

1. d4 {[%emt 0:00:00]} d5 {[%emt 0:06:51]} 2. c4 {[%emt 0:00:00]} c6 {[%emt 0:00:03]} 3. cxd5 {[%emt 0:00:26]} cxd5 {[%emt 0:00:28]} 4. Nc3 {[%emt 0:00:22]} Nc6 {[%emt 0:00:06]} 5. Bf4 {[%emt 0:00:22]} e5 {[%emt 0:00:16]} 6. dxe5 {[%emt 0:00:42]} d4 {[%emt 0:00:26]} 7. Ne4 {[%emt 0:00:07]} Qa5+ {[%emt 0:00:05]} 8. Nd2 {[%emt 0:00:09]} Nge7 {[%emt 0:00:07]} 9. Ngf3 {[%emt 0:00:28]} Nd5 {[%emt 0:00:09]} 10. g3 {[%emt 0:00:24]} h6 {[%emt 0:00:07]} 11. h4 {[%emt 0:00:32]} Be7 {[%emt 0:04:50]} 12. Bg2 {[%emt 0:00:36]} Nxf4 {[%emt 0:02:21]} 13. gxf4 {[%emt 0:00:05]} Be6 {[%emt 0:03:42]} 14. Kf1 {[%emt 0:10:32]} Rd8 {[%emt 0:03:46]} 15. Bh3 {[%emt 0:07:16]} Bd5 {[%emt 0:07:08]} 16. Bf5 {[%emt 0:01:05]} O-O {[%emt 0:03:34]} 17. Be4 {[%emt 0:13:56]} f6 {[%emt 0:02:12]} 18. Bxd5+ {[%emt 0:03:24]} Qxd5 {[%emt 0:00:28]} 19. Qb3 {[%emt 0:01:24]} fxe5 {[%emt 0:00:14]} 20. fxe5 {[%emt 0:02:48]} d3 {[%emt 0:09:07]} 21. Rd1 {[%emt 0:28:52]} Bb4 {[%emt 0:07:34]} 22. Ne4 {[%emt 0:09:40]} Qxb3 {[%emt 0:01:03]} 23. axb3 {[%emt 0:00:05]} Rf4 {[%emt 0:00:06]} 24. Nc3 {[%emt 0:01:35]} Bxc3 {[%emt 0:00:34]} 25. bxc3 {[%emt 0:00:05]} dxe2+ {[%emt 0:00:05] Ra1} 0-1

[Event "XIX Najdorf Memorial 2019"]
[Site "Warsaw"]
[Date "2019.07.13"]
[Round "8.8"]
[White "Mosesov, Danylo"]
[Black "Gukesh D"]
[Result "0-1"]
[ECO "B06"]
[WhiteElo "2353"]
[BlackElo "2520"]
[Annotator "ChessBase"]
[PlyCount "80"]
[EventDate "2019.07.06"]
[EventType "swiss"]
[EventCountry "POL"]
[SourceTitle "playchess.com"]
[Source "ChessBase"]
[SourceQuality "1"]
[TimeControl "40/5400+30:1800+30"]

1. e4 {[%emt 0:00:00]} g6 {[%emt 0:00:00]} 2. d4 {[%emt 0:00:00]} Bg7 {[%emt 0:00:00]} 3. Nc3 {[%emt 0:00:45]} d6 {[%emt 0:00:00]} 4. Nf3 {[%emt 0:00:13]} a6 {[%emt 0:00:54]} 5. a4 {[%emt 0:01:03]} Nf6 {[%emt 0:01:43]} 6. Be2 {[%emt 0:01:23]} O-O {[%emt 0:00:38]} 7. O-O {[%emt 0:00:03]} Nc6 {[%emt 0:02:56]} 8. d5 {[%emt 0:02:10]} Nb8 {[%emt 0:00:21]} 9. Be3 {[%emt 0:01:49]} Bg4 {[%emt 0:09:58]} 10. Nd4 {[%emt 0:10:46]} Bxe2 {[%emt 0:01:44]} 11. Qxe2 {[%emt 0:00:04]} c6 {[%emt 0:04:43]} 12. Rad1 {[%emt 0:04:40]} cxd5 {[%emt 0:07:02]} 13. exd5 {[%emt 0:00:07]} Nbd7 {[%emt 0:00:27]} 14. Nb3 {[%emt 0:01:30]} Rc8 {[%emt 0:02:39]} 15. Bd4 {[%emt 0:02:13]} Nb6 {[%emt 0:03:18]} 16. Rfe1 {[%emt 0:13:11]} Re8 {[%emt 0:00:30]} 17. Qf3 {[%emt 0:17:14]} Nc4 {[%emt 0:05:17]} 18. Rb1 {[%emt 0:05:20]} Qc7 {[%emt 0:12:01]} 19. Re2 {[%emt 0:04:14]} Nd7 {[%emt 0:04:09]} 20. Bxg7 {[%emt 0:00:46]} Kxg7 {[%emt 0:00:02]} 21. Ne4 {[%emt 0:00:50]} Nce5 {[%emt 0:08:18]} 22. Qg3 {[%emt 0:02:31]} Qc4 {[%emt 0:10:05]} 23. Nc3 {[%emt 0:00:12]} Nf6 {[%emt 0:02:09]} 24. Rd1 {[%emt 0:05:12]} Qb4 {[%emt 0:02:47]} 25. Rd4 {[%emt 0:07:12]} Rc4 {[%emt 0:00:20]} 26. Red2 {[%emt 0:00:53]} Rxd4 27. Rxd4 {[%emt 0:00:05]} Qb6 {[%emt 0:06:38]} 28. Qe3 {[%emt 0:06:03]} Rc8 {[%emt 0:01:10]} 29. a5 {[%emt 0:00:02]} Qc7 {[%emt 0:00:31]} 30. Rh4 {[%emt 0:01:56]} h5 {[%emt 0:01:29]} 31. Qg5 {[%emt 0:03:04]} Nc4 {[%emt 0:02:19]} 32. Nd4 {[%emt 0:01:29]} Qxa5 {[%emt 0:02:57]} 33. h3 {[%emt 0:00:49]} Kf8 {[%emt 0:04:37]} 34. Rf4 {[%emt 0:03:08]} Nxb2 {[%emt 0:01:43]} 35. Ne6+ {[%emt 0:05:34]} Ke8 {[%emt 0:00:40]} 36. Qh6 {[%emt 0:00:40]} Qxc3 {[%emt 0:01:09]} 37. Qf8+ {[%emt 0:00:08]} Kd7 {[%emt 0:00:04]} 38. Qxf7 {[%emt 0:00:05]} Qe1+ {[%emt 0:00:46]} 39. Kh2 {[%emt 0:00:01]} Nxd5 {[%emt 0:00:10]} 40. Nf8+ {[%emt 0:00:00]} Rxf8 {[%emt 0:00:00]} 0-1

[Event "XIX Najdorf Memorial 2019"]
[Site "Warsaw"]
[Date "2019.07.13"]
[Round "8.9"]
[White "Harsha Bharathakoti"]
[Black "Fus, Jakub"]
[Result "1/2-1/2"]
[ECO "C45"]
[WhiteElo "2486"]
[BlackElo "2341"]
[Annotator "ChessBase"]
[PlyCount "81"]
[EventDate "2019.07.06"]
[EventType "swiss"]
[EventCountry "POL"]
[SourceTitle "playchess.com"]
[Source "ChessBase"]
[SourceQuality "1"]
[TimeControl "40/5400+30:1800+30"]

1. e4 {[%emt 0:00:47]} e5 {[%emt 0:00:00]} 2. Nf3 {[%emt 0:00:25]} Nc6 {[%emt 0:00:19]} 3. d4 {[%emt 0:00:23]} exd4 {[%emt 0:00:25]} 4. Nxd4 {[%emt 0:00:05]} Nf6 {[%emt 0:00:35]} 5. Nxc6 {[%emt 0:00:34]} bxc6 {[%emt 0:00:19]} 6. e5 {[%emt 0:00:11]} Qe7 {[%emt 0:00:30]} 7. Qe2 {[%emt 0:00:23]} Nd5 {[%emt 0:00:23]} 8. h4 {[%emt 0:00:05]} a5 {[%emt 0:00:30]} 9. c4 {[%emt 0:02:33]} Nb6 {[%emt 0:02:31]} 10. Nd2 {[%emt 0:07:23]} Qe6 {[%emt 0:16:36]} 11. h5 {[%emt 0:26:09]} h6 {[%emt 0:03:28]} 12. g3 {[%emt 0:04:49]} Bb4 {[%emt 0:01:09]} 13. Rh4 {[%emt 0:00:22]} Ba6 {[%emt 0:03:08]} 14. a3 {[%emt 0:28:51]} Bxd2+ {[%emt 0:34:40]} 15. Bxd2 {[%emt 0:00:14]} O-O {[%emt 0:00:37]} 16. O-O-O {[%emt 0:04:56]} Rfe8 {[%emt 0:00:50]} 17. Qg4 {[%emt 0:02:40]} a4 {[%emt 0:11:11]} 18. Bc3 {[%emt 0:01:36]} c5 {[%emt 0:02:01]} 19. Bd3 {[%emt 0:02:33]} Qxg4 20. Rxg4 {[%emt 0:00:05]} Kf8 {[%emt 0:05:11]} 21. Kc2 {[%emt 0:05:51]} Rad8 {[%emt 0:00:51]} 22. Rd2 {[%emt 0:03:03]} Bb7 {[%emt 0:01:35]} 23. Rf4 {[%emt 0:00:27]} Bc6 {[%emt 0:03:56]} 24. g4 {[%emt 0:05:01]} Re7 {[%emt 0:01:47]} 25. g5 {[%emt 0:00:55]} hxg5 {[%emt 0:00:23]} 26. Rg4 {[%emt 0:00:04]} d5 {[%emt 0:01:38]} 27. exd6 {[%emt 0:00:06]} cxd6 {[%emt 0:02:10]} 28. Rxg5 {[%emt 0:00:35]} f6 {[%emt 0:00:05]} 29. Rg1 {[%emt 0:02:20]} Re6 {[%emt 0:02:41]} 30. h6 {[%emt 0:01:02]} gxh6 {[%emt 0:00:43]} 31. Rg6 {[%emt 0:00:03]} Be4 {[%emt 0:02:56]} 32. Rxf6+ {[%emt 0:00:56]} Rxf6 {[%emt 0:00:04]} 33. Bxf6 {[%emt 0:00:03]} Bxd3+ {[%emt 0:00:17]} 34. Kxd3 {[%emt 0:00:59]} Rd7 {[%emt 0:00:15]} 35. Bc3 {[%emt 0:00:28]} Rf7 {[%emt 0:01:31]} 36. Ba5 {[%emt 0:00:13]} Nd7 {[%emt 0:00:18]} 37. Ke2 {[%emt 0:00:35]} Ke7 {[%emt 0:00:30]} 38. Bc3 {[%emt 0:00:44]} Nb6 {[%emt 0:00:45]} 39. Rd3 {[%emt 0:00:15]} Rf5 {[%emt 0:00:59]} 40. Rh3 {[%emt 0:00:00]} h5 {[%emt 0:00:00]} 41. Rh4 {[%emt 0:00:26]} 1/2-1/2